fUSD/lending_fUSD_20240327
["ID","MTS","AMOUNT","RATE_DAILY","PERIOD"]
[320803807,1711561945355,-500.0,0.00058439,4]
[320803808,1711561945365,-500.0,0.00058439,4]
[320803809,1711561945374,-302.0,0.00058439,4]
[320803810,1711561945384,-714.41,0.00058466,120]
[320803811,1711561945395,-157.18743014,0.00058483,120]
[320803812,1711561945405,-157.18743014,0.00058497,120]
[320803813,1711561945416,-157.032721,0.00058498,115]
[320803814,1711561945425,-151.032708,0.00058498,114]
[320803815,1711561945434,-500.0,0.00058503,120]
[320803816,1711561945444,-574.14,0.00058503,120]
[320803817,1711561945453,-5056.51492563,0.0005852,120]
[320803818,1711561945462,-2297.87115028,0.0005852,120]
[320803819,1711561945471,-745.54344938,0.0005852,120]
[320803820,1711561945481,-2121.19438282,0.0005852,120]
[320803821,1711561945490,-318.86786748,0.00058545,120]
[320803822,1711561945500,-318.86786748,0.00058568,120]
[320803823,1711561945509,-150.0,0.000586,13]
[320803824,1711561945519,-522.2,0.0005863,120]
[320803825,1711561945528,-500.0,0.0005863,120]
[320803826,1711561945537,-479.98227597,0.0005863,120]
[320803827,1711561945546,-500.0,0.0005863,120]
[320803828,1711561945556,-631.01,0.0005863,120]
[320803829,1711561945566,-206.47102417,0.0005863,120]
[320803830,1711561945576,-500.0,0.0005863,120]
[320803831,1711561945587,-530.38,0.0005863,120]
[320803832,1711561945597,-517.87,0.0005863,120]
[320803833,1711561945608,-736.48,0.0005863,120]
[320803834,1711561945618,-500.0,0.0005863,120]
[320803835,1711561945630,-500.0,0.0005863,120]
[320803836,1711561945641,-827.53,0.0005863,120]
[320803837,1711561945651,-626.34069711,0.0005863,120]
[320803838,1711561945664,-1149.15,0.0005863,120]
[320803839,1711561945674,-683.71,0.0005863,120]
[320803840,1711561945684,-588.63,0.0005863,120]
[320803841,1711561945694,-1653.05,0.0005863,120]
[320803842,1711561945704,-721.85,0.0005863,120]
[320803843,1711561945714,-1272.4,0.0005863,120]
[320803844,1711561945723,-758.1,0.0005863,120]
[320803845,1711561945733,-751.34,0.0005863,120]
[320803846,1711561945744,-500.0,0.0005863,120]
[320803847,1711561945754,-1106.66,0.0005863,120]
[320803848,1711561945764,-667.72,0.0005863,120]
[320803849,1711561945774,-500.0,0.0005863,120]
[320803850,1711561945784,-546.53,0.0005863,120]
[320803851,1711561945793,-525.52,0.0005863,120]
[320803852,1711561945803,-1650.28,0.0005863,120]
[320803853,1711561945813,-500.0,0.0005863,120]
[320803854,1711561945823,-1208.64,0.0005863,120]
[320803855,1711561945834,-1675.07,0.0005863,120]
[320803856,1711561945843,-500.0,0.0005863,60]
[320803857,1711561945852,-875.05,0.0005863,120]
[320803858,1711561945862,-500.0,0.0005863,120]
[320803859,1711561945872,-896.37,0.0005863,120]
[320803860,1711561945882,-526.04,0.0005863,120]
[320803861,1711561945896,-774.53,0.0005863,120]
[320803862,1711561945906,-623.96,0.0005863,120]
[320803863,1711561945916,-1500.57,0.0005863,120]
[320803864,1711561945927,-500.0,0.0005863,120]
[320803865,1711561945936,-1293.46,0.0005863,120]
[320803866,1711561945946,-663.1,0.0005863,120]
[320803867,1711561945956,-591.57,0.0005863,120]
[320803868,1711561945966,-540.2,0.0005863,120]
[320803869,1711561945976,-500.0,0.0005863,120]
[320803870,1711561945986,-826.04,0.0005863,120]
[320803871,1711561945996,-802.7,0.0005863,120]
[320803872,1711561946005,-551.8,0.0005863,120]
[320803873,1711561946014,-792.47,0.0005863,120]
[320803874,1711561946024,-507.03,0.0005863,120]
[320803875,1711561946033,-814.62,0.0005863,120]
[320803876,1711561946043,-519.12,0.0005863,120]
[320803877,1711561946053,-613.76513441,0.0005863,120]
[320803878,1711561946064,-553.94,0.0005863,120]
[320803879,1711561946073,-1363.26,0.0005863,120]
[320803880,1711561946082,-681.15,0.0005863,120]
[320803881,1711561946091,-1247.0,0.0005863,120]
[320803882,1711561946101,-828.0,0.0005863,120]
[320803883,1711561946111,-691.03,0.0005863,120]
[320803884,1711561946120,-907.95,0.0005863,120]
[320803885,1711561946130,-1943.45,0.0005863,120]
[320803886,1711561946141,-1363.72,0.0005863,120]
[320803887,1711561946151,-500.0,0.0005863,120]
[320803888,1711561946161,-1264.66,0.0005863,120]
[320803889,1711561946170,-518.11,0.0005863,120]
[320803890,1711561946179,-500.0,0.0005863,120]
[320803891,1711561946189,-785.6,0.0005863,120]
[320803892,1711561946198,-500.0,0.0005863,120]
[320803893,1711561946208,-500.0,0.0005863,120]
[320803894,1711561946218,-533.96,0.0005863,120]
[320803895,1711561946227,-610.76,0.0005863,120]
[320803896,1711561946237,-500.0,0.0005863,120]
[320803897,1711561946246,-601.27,0.0005863,120]
[320803898,1711561946255,-619.35,0.0005863,120]
[320803899,1711561946265,-723.32,0.0005863,120]
[320803900,1711561946275,-658.94,0.0005863,30]
[320803901,1711561946284,-604.53,0.0005863,120]
[320803902,1711561946294,-500.0,0.0005863,120]
[320803903,1711561946304,-627.6,0.0005863,120]
[320803904,1711561946313,-541.49,0.0005863,120]
[320803905,1711561946323,-525.41,0.0005863,120]
[320803906,1711561946332,-1259.13,0.0005863,120]
[320803907,1711561946342,-500.0,0.0005863,120]
[320803908,1711561946351,-961.87,0.0005863,120]
[320803909,1711561946361,-1118.41,0.0005863,120]
[320803910,1711561946370,-1285.86,0.0005863,120]
[320803911,1711561946537,-653.33,0.0005863,120]
[320803912,1711561946549,-500.0,0.0005863,120]
[320803913,1711561946558,-515.61,0.0005863,120]
[320803914,1711561946569,-881.34,0.0005863,120]
[320803915,1711561946580,-594.96,0.0005863,120]
[320803916,1711561946589,-635.55,0.0005863,120]
[320803917,1711561946602,-500.0,0.0005863,120]
[320803918,1711561946612,-569.07,0.0005863,120]
[320803919,1711561946621,-513.81,0.0005863,120]
[320803920,1711561946631,-885.2,0.0005863,120]
[320803921,1711561946641,-507.05,0.0005863,120]
[320803922,1711561946651,-345.9,0.0005863,120]
[320803923,1711561946661,-500.0,0.0005863,120]
[320803924,1711561946670,-969.37,0.0005863,120]
[320803925,1711561946680,-500.0,0.0005863,120]
[320803926,1711561946690,-712.96,0.0005863,120]
[320803927,1711561946700,-607.67,0.0005863,120]
[320803928,1711561946709,-500.0,0.0005863,120]
[320803929,1711561946719,-631.34,0.0005863,120]
[320803930,1711561946728,-500.0,0.0005863,120]
[320803931,1711561946737,-572.09,0.0005863,120]
[320803932,1711561946746,-633.56,0.0005863,120]
[320803933,1711561946755,-1276.08,0.0005863,120]
[320803934,1711561946765,-743.04,0.0005863,120]
[320803935,1711561946775,-994.38,0.0005863,120]
[320803936,1711561946784,-1464.37,0.0005863,120]
[320803937,1711561946793,-1308.17,0.0005863,120]
[320803938,1711561946803,-1966.83,0.0005863,120]
[320803939,1711561946812,-1167.58,0.0005863,120]
[320803940,1711561946821,-882.23,0.0005863,120]
[320803941,1711561946831,-500.0,0.0005863,120]
[320803942,1711561946841,-939.99,0.0005863,120]
[320803943,1711561946850,-1680.42,0.0005863,120]
[320803944,1711561946860,-654.45,0.0005863,120]
[320803945,1711561946870,-1090.78,0.0005863,120]
[320803946,1711561946883,-5693.99,0.0005863,120]
[320803947,1711561946893,-2767.8,0.0005863,120]
[320803948,1711561946903,-631.11,0.0005863,120]
[320803949,1711561946915,-638.94,0.0005863,120]
[320803950,1711561946924,-1880.06,0.0005863,120]
[320803951,1711561946934,-3576.66,0.0005863,120]
[320803952,1711561946943,-1154.81,0.0005863,120]
[320803953,1711561946953,-597.69,0.0005863,120]
[320803954,1711561946963,-11680.99,0.0005863,120]
[320803955,1711561946972,-500.0,0.0005863,120]
[320803956,1711561946981,-500.0,0.0005863,120]
[320803957,1711561946990,-500.0,0.0005863,120]
[320803958,1711561946999,-4891.01,0.0005863,120]
[320803959,1711561947009,-820.32,0.0005863,120]
[320803960,1711561947019,-2266.19,0.0005863,120]
[320803961,1711561947028,-4319.88,0.0005863,120]
[320803962,1711561947038,-638.01,0.0005863,120]
[320803963,1711561947048,-1948.43,0.0005863,120]
[320803964,1711561947057,-594.89,0.0005863,120]
[320803965,1711561947067,-58191.63,0.0005863,120]
[320803966,1711561947077,-197.25086867,0.0005863,120]
[320803967,1711561947086,-4872.06,0.0005863,120]
[320803968,1711561947095,-25819.15,0.0005863,120]
[320803969,1711561947105,-916.42,0.0005863,120]
[320803970,1711561947115,-672.12,0.0005863,120]
[320803971,1711561947124,-500.0,0.0005863,120]
[320803972,1711561947133,-2822.64,0.0005863,120]
[320803973,1711561947145,-5739.01,0.0005863,120]
[320803974,1711561947154,-1773.91,0.0005863,120]
[320803975,1711561947163,-1599.36,0.0005863,120]
[320803976,1711561947173,-7896.21,0.0005863,120]
[320803977,1711561947182,-580.5,0.0005863,120]
[320803978,1711561947192,-500.0,0.0005863,120]
[320803979,1711561947201,-702.31,0.0005863,120]
[320803980,1711561947211,-4077.6,0.0005863,120]
[320803981,1711561947221,-962.02,0.0005863,120]
[320803982,1711561947230,-1910.86,0.0005863,120]
[320803983,1711561947239,-1981.61,0.0005863,120]
[320803984,1711561947249,-993.68,0.0005863,120]
[320803985,1711561947258,-1310.9,0.0005863,120]
[320803986,1711561947268,-5861.79,0.0005863,120]
[320803987,1711561947277,-861.74,0.0005863,120]
[320803988,1711561947286,-3868.28,0.0005863,120]
[320803989,1711561947296,-4602.46,0.0005863,120]
[320803990,1711561947306,-2663.41,0.0005863,120]
[320803991,1711561947315,-2285.5,0.0005863,120]
[320803992,1711561947325,-7201.79,0.0005863,120]
[320803993,1711561947334,-1041.92,0.0005863,120]
[320803994,1711561947343,-500.0,0.0005863,120]
[320803995,1711561947353,-2054.16,0.0005863,120]
[320803996,1711561947363,-18909.02,0.0005863,120]
[320803997,1711561947372,-1431.94,0.0005863,120]
[320803998,1711561947382,-1528.43,0.0005863,120]
[320803999,1711561947393,-1715.09,0.0005863,120]
[320804000,1711561947403,-543.42,0.0005863,120]
[320804001,1711561947412,-836.18,0.0005863,120]
[320804002,1711561947422,-2529.3,0.0005863,120]
[320804003,1711561947431,-1204.05,0.0005863,120]
[320804004,1711561947441,-882.15,0.0005863,120]
[320804005,1711561947451,-500.0,0.0005863,120]
[320804006,1711561947461,-1890.07,0.0005863,120]
[320804007,1711561947471,-1395.77,0.0005863,120]
[320804008,1711561947480,-22066.4,0.0005863,120]
[320804009,1711561947489,-9133.29,0.0005863,120]
[320804010,1711561947499,-3276.54,0.0005863,120]
[320804011,1711561947509,-3779.21,0.0005863,120]
[320804012,1711561947518,-505.39,0.0005863,120]
[320804013,1711561947528,-1407.53,0.0005863,120]
[320804014,1711561947540,-1780.21,0.0005863,120]
[320804015,1711561947549,-744.71,0.0005863,120]
[320804016,1711561947560,-3375.62,0.0005863,120]
[320804017,1711561947569,-500.0,0.0005863,120]
[320804018,1711561947579,-1245.33,0.0005863,120]
[320804019,1711561947588,-825.22,0.0005863,120]
[320804020,1711561947597,-2499.0,0.0005863,120]
[320804021,1711561947606,-1139.82,0.0005863,120]
[320804022,1711561947616,-3390.46,0.0005863,120]
[320804023,1711561947625,-2297.82,0.0005863,120]
[320804024,1711561947635,-36215.98,0.0005863,120]
[320804025,1711561947648,-2115.9,0.0005863,120]
[320804026,1711561947658,-500.0,0.0005863,120]
[320804027,1711561947667,-504.0,0.0005863,120]
[320804028,1711561947677,-635.43,0.0005863,120]
[320804029,1711561947687,-509.72,0.0005863,7]
[320804030,1711561947697,-1985.21,0.0005863,120]
[320804031,1711561947706,-4093.44,0.0005863,120]
[320804032,1711561947716,-598.33,0.0005863,120]
[320804033,1711561947726,-3703.02,0.0005863,120]
[320804034,1711561947737,-3170.6,0.0005863,120]
[320804035,1711561947747,-4518.78,0.0005863,120]
[320804036,1711561947756,-816.34,0.0005863,120]
[320804037,1711561947765,-550.58,0.0005863,120]
[320804038,1711561947775,-5597.96,0.0005863,120]
[320804039,1711561947786,-3365.42,0.0005863,120]
[320804040,1711561947795,-1850.45,0.0005863,120]
[320804041,1711561947805,-1437.25,0.0005863,120]
[320804042,1711561947814,-543.16,0.0005863,120]
[320804043,1711561947824,-500.0,0.0005863,120]
[320804044,1711561947833,-13261.96,0.0005863,120]
[320804045,1711561947843,-2460.7,0.0005863,120]
[320804046,1711561947852,-688.55,0.0005863,120]
[320804047,1711561947861,-1308.22,0.0005863,120]
[320804048,1711561947871,-1655.41,0.0005863,120]
[320804049,1711561947880,-500.0,0.0005863,120]
[320804050,1711561947891,-3292.56,0.0005863,120]
[320804051,1711561947901,-606.26,0.0005863,120]
[320804052,1711561947910,-2911.12,0.0005863,120]
[320804053,1711561947919,-4771.81,0.0005863,120]
[320804054,1711561947930,-1591.58,0.0005863,120]
[320804055,1711561947939,-8314.67,0.0005863,21]
[320804056,1711561947949,-515.6,0.0005863,120]
[320804057,1711561947959,-1246.89,0.0005863,120]
[320804058,1711561947970,-1689.16,0.0005863,120]
[320804059,1711561947980,-500.0,0.0005863,120]
[320804060,1711561947989,-770.25,0.0005863,120]
[320804061,1711561947999,-8380.88,0.0005863,120]
[320804062,1711561948008,-2319.97,0.0005863,120]
[320804063,1711561948018,-614.46,0.0005863,120]
[320804064,1711561948028,-2989.36,0.0005863,120]
[320804065,1711561948038,-10959.62,0.0005863,120]
[320804066,1711561948047,-521.47,0.0005863,120]
[320804067,1711561948056,-2645.1,0.0005863,120]
[320804068,1711561948066,-758.38,0.0005863,120]
[320804069,1711561948075,-12744.26,0.0005863,120]
[320804070,1711561948085,-500.0,0.0005863,120]
[320804071,1711561948094,-11517.5,0.0005863,120]
[320804072,1711561948103,-2628.59,0.0005863,120]
[320804073,1711561948113,-1981.45,0.0005863,120]
[320804074,1711561948123,-500.0,0.0005863,120]
[320804075,1711561948132,-2618.9,0.0005863,120]
[320804076,1711561948141,-2635.65,0.0005863,120]
[320804077,1711561948150,-2440.72,0.0005863,120]
[320804078,1711561948160,-1641.2,0.0005863,120]
[320804079,1711561948169,-1422.66,0.0005863,120]
[320804080,1711561948180,-1953.26,0.0005863,120]
[320804081,1711561948189,-680.59,0.0005863,120]
[320804082,1711561948198,-851.11,0.0005863,120]
[320804083,1711561948207,-516.23,0.0005863,120]
[320804084,1711561948217,-4524.02,0.0005863,120]
[320804085,1711561948226,-500.0,0.0005863,120]
[320804086,1711561948236,-833.36,0.0005863,120]
[320804087,1711561948245,-2147.51,0.0005863,120]
[320804088,1711561948254,-1200.4,0.0005863,120]
[320804089,1711561948263,-6977.94,0.0005863,120]
[320804090,1711561948272,-4994.03,0.0005863,120]
[320804091,1711561948282,-1826.97,0.0005863,120]
[320804092,1711561948291,-1042.58,0.0005863,120]
[320804093,1711561948301,-818.62,0.0005863,120]
[320804094,1711561948311,-1312.03,0.0005863,120]
[320804095,1711561948321,-1814.79,0.0005863,120]
[320804096,1711561948330,-1730.09,0.0005863,120]
[320804097,1711561948340,-3092.64,0.0005863,120]
[320804098,1711561948349,-500.0,0.0005863,120]
[320804099,1711561948358,-3331.35,0.0005863,120]
[320804100,1711561948369,-1107.56,0.0005863,120]
[320804101,1711561948378,-1629.06,0.0005863,120]
[320804102,1711561948387,-858.06,0.0005863,120]
[320804103,1711561948397,-1926.96,0.0005863,120]
[320804104,1711561948407,-5998.21,0.0005863,120]
[320804105,1711561948417,-1276.61,0.0005863,120]
[320804106,1711561948426,-978.47,0.0005863,120]
[320804107,1711561948435,-1204.74,0.0005863,120]
[320804108,1711561948444,-500.0,0.0005863,120]
[320804109,1711561948453,-1112.11,0.0005863,120]
[320804110,1711561948462,-500.0,0.0005863,120]
[320804111,1711561948472,-5147.59,0.0005863,120]
[320804112,1711561948482,-1278.89,0.0005863,120]
[320804113,1711561948491,-1257.45,0.0005863,120]
[320804114,1711561948500,-150.0,0.0005866,120]
[320804115,1711561948510,-150.19866873,0.00058674,77]
[320804116,1711561948520,-150.50617537,0.00058679,120]
[320804117,1711561948530,-150.50617537,0.00058689,120]
[320804118,1711561948540,-1155.14,0.00058749,120]
[320804119,1711561948550,-1155.14,0.00058749,120]
[320804120,1711561948561,-1155.14,0.00058749,120]
[320804121,1711561948570,-1155.14,0.00058749,120]
[320804122,1711561948580,-1155.14,0.00058749,120]
[320804123,1711561948590,-1155.14,0.00058749,120]
[320804124,1711561948600,-1155.14,0.00058749,120]
[320804125,1711561948609,-1155.14,0.00058749,120]
[320804126,1711561948618,-1155.14,0.00058749,120]
[320804127,1711561948628,-1155.14,0.00058749,120]
[320804128,1711561948637,-1155.14,0.00058749,120]
[320804129,1711561948647,-1155.14,0.00058749,120]
[320804130,1711561948657,-1155.14,0.00058749,120]
[320804131,1711561948666,-1155.14,0.00058749,120]
[320804132,1711561948676,-1155.14,0.00058749,120]
[320804133,1711561948685,-1155.14,0.00058749,120]
[320804134,1711561948695,-1155.14,0.00058749,120]
[320804135,1711561948704,-1155.14,0.00058749,120]
[320804136,1711561948714,-1155.14,0.00058749,120]
[320804137,1711561948723,-1155.14,0.00058749,120]
[320804138,1711561948733,-1155.14,0.00058749,120]
[320804139,1711561948742,-1155.14,0.00058749,120]
[320804140,1711561948751,-1155.14,0.00058749,120]
[320804141,1711561948761,-1155.14,0.00058749,120]
[320804142,1711561948770,-1155.14,0.00058749,120]
[320804143,1711561948780,-1155.14,0.00058749,120]
[320804144,1711561948790,-1155.14,0.00058749,120]
[320804145,1711561948799,-1155.1861304,0.00058749,120]
[320804146,1711561948809,-154.13724489,0.00058779,120]
[320804147,1711561948818,-157.032721,0.00058798,115]
[320804148,1711561948828,-150.0,0.000588,38]
[320804149,1711561948837,-152.91494694,0.00058837,120]
[320804150,1711561948847,-157.20206273,0.00058852,120]
[320804151,1711561948857,-318.86786748,0.00058881,120]
[320804152,1711561948867,-154.13724489,0.00058885,120]
[320804153,1711561948880,-327.0,0.00058888,30]
[320804154,1711561948891,-415.0,0.00058888,30]
[320804155,1711561948901,-1000.0,0.00058903,90]
[320804156,1711561948910,-500.0,0.00058903,90]
[320804157,1711561948921,-522.2,0.00058904,120]
[320804158,1711561948930,-500.0,0.00058904,120]
[320804159,1711561948940,-537.42466318,0.00058904,120]
[320804160,1711561948950,-631.01,0.00058904,120]
[320804161,1711561948960,-500.0,0.00058904,120]
[320804162,1711561948969,-530.38,0.00058904,120]
[320804163,1711561948978,-517.87,0.00058904,120]
[320804164,1711561948988,-736.48,0.00058904,120]
[320804165,1711561948997,-500.0,0.00058904,120]
[320804166,1711561949007,-500.0,0.00058904,120]
[320804167,1711561949017,-827.53,0.00058904,120]
[320804168,1711561949026,-1149.15,0.00058904,120]
[320804169,1711561949036,-683.71,0.00058904,120]
[320804170,1711561949046,-588.63,0.00058904,120]
[320804171,1711561949056,-1653.05,0.00058904,120]
[320804172,1711561949066,-721.85,0.00058904,120]
[320804173,1711561949075,-1272.4,0.00058904,120]
[320804174,1711561949085,-758.1,0.00058904,120]
[320804175,1711561949094,-751.34,0.00058904,120]
[320804176,1711561949103,-500.0,0.00058904,120]
[320804177,1711561949112,-1106.66,0.00058904,120]
[320804178,1711561949122,-667.72,0.00058904,120]
[320804179,1711561949131,-500.0,0.00058904,120]
[320804180,1711561949142,-546.53,0.00058904,120]
[320804181,1711561949152,-525.52,0.00058904,120]
[320804182,1711561949161,-1650.28,0.00058904,120]
[320804183,1711561949171,-319.43251006,0.00058904,120]
[320804184,1711561949180,-1208.64,0.00058904,120]
[320804185,1711561949189,-1675.07,0.00058904,120]
[320804186,1711561949199,-500.0,0.00058904,60]
[320804187,1711561949208,-875.05,0.00058904,120]
[320804188,1711561949217,-500.0,0.00058904,120]
[320804189,1711561949227,-896.37,0.00058904,120]
[320804190,1711561949236,-526.04,0.00058904,120]
[320804191,1711561949246,-774.53,0.00058904,120]
[320804192,1711561949255,-623.96,0.00058904,120]
[320804193,1711561949265,-1500.57,0.00058904,120]
[320804194,1711561949274,-500.0,0.00058904,120]
[320804195,1711561949284,-1293.46,0.00058904,120]
[320804196,1711561949293,-663.1,0.00058904,120]
[320804197,1711561949303,-591.57,0.00058904,120]
[320804198,1711561949311,-540.2,0.00058904,120]
[320804199,1711561949321,-550.59423723,0.00058904,120]
[320804200,1711561949331,-826.04,0.00058904,120]
[320804201,1711561949341,-802.7,0.00058904,120]
[320804202,1711561949351,-551.8,0.00058904,120]
[320804203,1711561949359,-792.47,0.00058904,120]
[320804204,1711561949368,-507.03,0.00058904,120]
[320804205,1711561949378,-814.62,0.00058904,120]
[320804206,1711561949388,-519.12,0.00058904,120]
[320804207,1711561949399,-553.94,0.00058904,120]
[320804208,1711561949408,-1363.26,0.00058904,120]
[320804209,1711561949417,-681.15,0.00058904,120]
[320804210,1711561949426,-1247.0,0.00058904,120]
[320804211,1711561949436,-828.0,0.00058904,120]
[320804212,1711561949446,-691.03,0.00058904,120]
[320804213,1711561949455,-907.95,0.00058904,120]
[320804214,1711561949465,-1943.45,0.00058904,120]
[320804215,1711561949475,-1363.72,0.00058904,120]
[320804216,1711561949484,-500.0,0.00058904,120]
[320804217,1711561949494,-1264.66,0.00058904,120]
[320804218,1711561949504,-518.11,0.00058904,120]
[320804219,1711561949513,-500.0,0.00058904,120]
[320804220,1711561949523,-785.6,0.00058904,120]
[320804221,1711561949534,-548.72,0.00058904,120]
[320804222,1711561949544,-500.0,0.00058904,120]
[320804223,1711561949553,-533.96,0.00058904,120]
[320804224,1711561949563,-610.76,0.00058904,120]
[320804225,1711561949573,-292.16,0.00058904,120]
[320804226,1711561949582,-601.27,0.00058904,120]
[320804227,1711561949592,-619.35,0.00058904,120]
[320804228,1711561949601,-723.32,0.00058904,120]
[320804229,1711561949611,-658.94,0.00058904,30]
[320804230,1711561949621,-604.53,0.00058904,120]
[320804231,1711561949632,-500.0,0.00058904,120]
[320804232,1711561949642,-627.6,0.00058904,120]
[320804233,1711561949651,-541.49,0.00058904,120]
[320804234,1711561949660,-525.41,0.00058904,120]
[320804235,1711561949670,-1259.13,0.00058904,120]
[320804236,1711561949680,-500.0,0.00058904,120]
[320804237,1711561949690,-961.87,0.00058904,120]
[320804238,1711561949700,-1118.41,0.00058904,120]
[320804239,1711561949710,-1285.86,0.00058904,120]
[320804240,1711561949719,-653.33,0.00058904,120]
[320804241,1711561949729,-500.0,0.00058904,120]
[320804242,1711561949739,-515.61,0.00058904,120]
[320804243,1711561949748,-881.34,0.00058904,120]
[320804244,1711561949759,-594.96,0.00058904,120]
[320804245,1711561949769,-635.55,0.00058904,120]
[320804246,1711561949779,-500.0,0.00058904,120]
[320804247,1711561949789,-569.07,0.00058904,120]
[320804248,1711561949799,-513.81,0.00058904,120]
[320804249,1711561949808,-885.2,0.00058904,120]
[320804250,1711561949818,-507.05,0.00058904,120]
[320804251,1711561949828,-345.9,0.00058904,120]
[320804252,1711561949838,-500.0,0.00058904,120]
[320804253,1711561949848,-969.37,0.00058904,120]
[320804254,1711561949857,-500.0,0.00058904,120]
[320804255,1711561949866,-712.96,0.00058904,120]
[320804256,1711561949878,-607.67,0.00058904,120]
[320804257,1711561949888,-500.0,0.00058904,120]
[320804258,1711561949904,-500.0,0.00058904,120]
[320804259,1711561949914,-572.09,0.00058904,120]
[320804260,1711561949923,-633.56,0.00058904,120]
[320804261,1711561949934,-1276.08,0.00058904,120]
[320804262,1711561949944,-743.04,0.00058904,120]
[320804263,1711561949954,-994.38,0.00058904,120]
[320804264,1711561949964,-1464.37,0.00058904,120]
[320804265,1711561949973,-1308.17,0.00058904,120]
[320804266,1711561949983,-1966.83,0.00058904,120]
[320804267,1711561949993,-1167.58,0.00058904,120]
[320804268,1711561950004,-882.23,0.00058904,120]
[320804269,1711561950014,-500.0,0.00058904,120]
[320804270,1711561950024,-939.99,0.00058904,120]
[320804271,1711561950034,-1680.42,0.00058904,120]
[320804272,1711561950044,-654.45,0.00058904,120]
[320804273,1711561950055,-1090.78,0.00058904,120]
[320804274,1711561950065,-5693.99,0.00058904,120]
[320804275,1711561950075,-2767.8,0.00058904,120]
[320804276,1711561950086,-631.11,0.00058904,120]
[320804277,1711561950098,-638.94,0.00058904,120]
[320804278,1711561950109,-1880.06,0.00058904,120]
[320804279,1711561950120,-3576.66,0.00058904,120]
[320804280,1711561950130,-1154.81,0.00058904,120]
[320804281,1711561950143,-597.69,0.00058904,120]
[320804282,1711561950153,-11680.99,0.00058904,120]
[320804283,1711561950163,-500.0,0.00058904,120]
[320804284,1711561950172,-500.0,0.00058904,120]
[320804285,1711561950364,-500.0,0.00058904,120]
[320804286,1711561950374,-820.32,0.00058904,120]
[320804287,1711561950383,-4891.01,0.00058904,120]
[320804288,1711561950393,-2266.19,0.00058904,120]
[320804289,1711561950402,-4319.88,0.00058904,120]
[320804290,1711561950412,-638.01,0.00058904,120]
[320804291,1711561950421,-1948.43,0.00058904,120]
[320804292,1711561950430,-594.89,0.00058904,120]
[320804293,1711561950441,-58191.63,0.00058904,120]
[320804294,1711561950450,-4872.06,0.00058904,120]
[320804295,1711561950460,-25819.15,0.00058904,120]
[320804296,1711561950469,-916.42,0.00058904,120]
[320804297,1711561950478,-672.12,0.00058904,120]
[320804298,1711561950487,-500.0,0.00058904,120]
[320804299,1711561950497,-2822.64,0.00058904,120]
[320804300,1711561950507,-5739.01,0.00058904,120]
[320804301,1711561950516,-1773.91,0.00058904,120]
[320804302,1711561950525,-1599.36,0.00058904,120]
[320804303,1711561950535,-7896.21,0.00058904,120]
[320804304,1711561950545,-580.5,0.00058904,120]
[320804305,1711561950555,-500.0,0.00058904,120]
[320804306,1711561950565,-702.31,0.00058904,120]